{"text_format":"1","workbook":"xlsx","n_sheets":2,"sheets":["Sheet1","BankCodes"],"not_rendered":{"charts":0,"images":1,"macros":1,"external_links":0,"defined_names":4,"comments":0,"pivot_tables":0},"unopened":[],"bounds":{"document_bytes":16777216,"sheet_cells":100000,"rows_first":2000,"rows_last":500,"rows_between":2000,"halvings":0,"cell_chars":16384,"cell_head_chars":4096},"cells_cut":0,"cells_raw":0,"read":"whole","date_system":"1900"}

{"sheet":"Sheet1","index":0,"n_rows":306,"n_cols":9,"rows_kept":306,"cut":false,"hidden":false,"merged":[[1,0,1,1],[0,0,0,1],[2,1,2,2],[0,2,0,3]]}
["Công ty TNHH Dịch vụ Công nghệ Vạn Xuân",null,"Công ty TNHH VXTDEMO"]
["https://vxtgroup.com/contact",null,"\nVersion 1.06"]
[null,"Lưu ý 1: chỉ nhập hoặc thay đổi thông tin ở ô C1 và bảng dưới đây\n\nLưu ý 2: mã QR ngân hàng sau khi tạo ra sẽ tự động được sao chép (copy), do vậy có thể dán (paste) ngay vào các phần mềm khác như Zalo, Skype, Viber...\n\nLiên hệ tác giả: https://vxtgroup.com/contact\nGiới thiệu giải pháp: https://go.vxtgroup.com/bankqr",null,{"$f":"\"Tổng cộng: \" & TEXT(E4, \"#,##0\") & \" VND\"","v":"Tổng cộng: 6,900 VND"},null,"Quỹ vắc xin phòng COVID 19\r\nSo TK: 113366668888\r\nNgan hang: Vietinbank - NH Công thương\r\nSo tien: 2,300\r\nLe Thi ABCD ung ho quy vac xin"]
[null,null,null,null,{"$f":"SUM(E6:E304)","v":6900}]
["TT","Tên người / tổ chức nhận tiền","Số tài khoản","Tên ngân hàng","Số tiền (VND)","Mô tả giao dịch (ghi tiếng Việt không dấu)","Bank code","Length"]
[1,"Công Ty CP Cấp Nước Đồng Nai","59403499","ACB - NH Á châu",1200,"Thanh toan tien nuoc sinh hoat gia dinh 02/2025",{"$f":"IF(D6<>\"\", VLOOKUP(D6,bank_code_table[],2,FALSE), \"\")","v":970416},{"$f":"LEN(F6)","v":47}]
[2,"Quỹ vắc xin phòng COVID 19","113366668888","Vietinbank - NH Công thương",2300,"Le Thi ABCD ung ho quy vac xin",{"$f":"IF(D7<>\"\", VLOOKUP(D7,bank_code_table[],2,FALSE), \"\")","v":970415},30]
[3,"Quỹ vắc xin phòng COVID 19","113366668888","Vietinbank - NH Công thương",3400,"Ung ho quy vac xin COVID 19 tu Nguyen Van XYZ",{"$f":"IF(D8<>\"\", VLOOKUP(D8,bank_code_table[],2,FALSE), \"\")","v":970415},45]
[null,null,null,null,null,null,{"$f":"IF(D9<>\"\", VLOOKUP(D9,bank_code_table[],2,FALSE), \"\")","v":""},0]
[null,null,null,null,null,null,{"$f":"IF(D10<>\"\", VLOOKUP(D10,bank_code_table[],2,FALSE), \"\")","v":""},0]
[null,null,null,null,null,null,{"$f":"IF(D11<>\"\", VLOOKUP(D11,bank_code_table[],2,FALSE), \"\")","v":""},0]
[null,null,null,null,null,null,{"$f":"IF(D12<>\"\", VLOOKUP(D12,bank_code_table[],2,FALSE), \"\")","v":""},0]
[null,null,null,null,null,null,{"$f":"IF(D13<>\"\", VLOOKUP(D13,bank_code_table[],2,FALSE), \"\")","v":""},0]
[null,null,null,null,null,null,{"$f":"IF(D14<>\"\", VLOOKUP(D14,bank_code_table[],2,FALSE), \"\")","v":""},0]
[null,null,null,null,null,null,{"$f":"IF(D15<>\"\", VLOOKUP(D15,bank_code_table[],2,FALSE), \"\")","v":""},0]
[null,null,null,null,null,null,{"$f":"IF(D16<>\"\", VLOOKUP(D16,bank_code_table[],2,FALSE), \"\")","v":""},0]
[null,null,null,null,null,null,{"$f":"IF(D17<>\"\", VLOOKUP(D17,bank_code_table[],2,FALSE), \"\")","v":""},0]
[null,null,null,null,null,null,{"$f":"IF(D18<>\"\", VLOOKUP(D18,bank_code_table[],2,FALSE), \"\")","v":""},0]
[null,null,null,null,null,null,{"$f":"IF(D19<>\"\", VLOOKUP(D19,bank_code_table[],2,FALSE), \"\")","v":""},0]
[null,null,null,null,null,null,{"$f":"IF(D20<>\"\", VLOOKUP(D20,bank_code_table[],2,FALSE), \"\")","v":""},0]
[null,null,null,null,null,null,{"$f":"IF(D21<>\"\", VLOOKUP(D21,bank_code_table[],2,FALSE), \"\")","v":""},0]
[null,null,null,null,null,null,{"$f":"IF(D22<>\"\", VLOOKUP(D22,bank_code_table[],2,FALSE), \"\")","v":""},0]
[null,null,null,null,null,null,{"$f":"IF(D23<>\"\", VLOOKUP(D23,bank_code_table[],2,FALSE), \"\")","v":""},0]
[null,null,null,null,null,null,{"$f":"IF(D24<>\"\", VLOOKUP(D24,bank_code_table[],2,FALSE), \"\")","v":""},0]
[null,null,null,null,null,null,{"$f":"IF(D25<>\"\", VLOOKUP(D25,bank_code_table[],2,FALSE), \"\")","v":""},0]
[null,null,null,null,null,null,{"$f":"IF(D26<>\"\", VLOOKUP(D26,bank_code_table[],2,FALSE), \"\")","v":""},0]
[null,null,null,null,null,null,{"$f":"IF(D27<>\"\", VLOOKUP(D27,bank_code_table[],2,FALSE), \"\")","v":""},0]
[null,null,null,null,null,null,{"$f":"IF(D28<>\"\", VLOOKUP(D28,bank_code_table[],2,FALSE), \"\")","v":""},0]
[null,null,null,null,null,null,{"$f":"IF(D29<>\"\", VLOOKUP(D29,bank_code_table[],2,FALSE), \"\")","v":""},0]
[null,null,null,null,null,null,{"$f":"IF(D30<>\"\", VLOOKUP(D30,bank_code_table[],2,FALSE), \"\")","v":""},0]
[null,null,null,null,null,null,{"$f":"IF(D31<>\"\", VLOOKUP(D31,bank_code_table[],2,FALSE), \"\")","v":""},0]
[null,null,null,null,null,null,{"$f":"IF(D32<>\"\", VLOOKUP(D32,bank_code_table[],2,FALSE), \"\")","v":""},0]
[null,null,null,null,null,null,{"$f":"IF(D33<>\"\", VLOOKUP(D33,bank_code_table[],2,FALSE), \"\")","v":""},0]
[null,null,null,null,null,null,{"$f":"IF(D34<>\"\", VLOOKUP(D34,bank_code_table[],2,FALSE), \"\")","v":""},0]
[null,null,null,null,null,null,{"$f":"IF(D35<>\"\", VLOOKUP(D35,bank_code_table[],2,FALSE), \"\")","v":""},0]
[null,null,null,null,null,null,{"$f":"IF(D36<>\"\", VLOOKUP(D36,bank_code_table[],2,FALSE), \"\")","v":""},0]
[null,null,null,null,null,null,{"$f":"IF(D37<>\"\", VLOOKUP(D37,bank_code_table[],2,FALSE), \"\")","v":""},0]
[null,null,null,null,null,null,{"$f":"IF(D38<>\"\", VLOOKUP(D38,bank_code_table[],2,FALSE), \"\")","v":""},0]
[null,null,null,null,null,null,{"$f":"IF(D39<>\"\", VLOOKUP(D39,bank_code_table[],2,FALSE), \"\")","v":""},0]
[null,null,null,null,null,null,{"$f":"IF(D40<>\"\", VLOOKUP(D40,bank_code_table[],2,FALSE), \"\")","v":""},0]
[null,null,null,null,null,null,{"$f":"IF(D41<>\"\", VLOOKUP(D41,bank_code_table[],2,FALSE), \"\")","v":""},0]
[null,null,null,null,null,null,{"$f":"IF(D42<>\"\", VLOOKUP(D42,bank_code_table[],2,FALSE), \"\")","v":""},0]
[null,null,null,null,null,null,{"$f":"IF(D43<>\"\", VLOOKUP(D43,bank_code_table[],2,FALSE), \"\")","v":""},0]
[null,null,null,null,null,null,{"$f":"IF(D44<>\"\", VLOOKUP(D44,bank_code_table[],2,FALSE), \"\")","v":""},0]
[null,null,null,null,null,null,{"$f":"IF(D45<>\"\", VLOOKUP(D45,bank_code_table[],2,FALSE), \"\")","v":""},0]
[null,null,null,null,null,null,{"$f":"IF(D46<>\"\", VLOOKUP(D46,bank_code_table[],2,FALSE), \"\")","v":""},0]
[null,null,null,null,null,null,{"$f":"IF(D47<>\"\", VLOOKUP(D47,bank_code_table[],2,FALSE), \"\")","v":""},0]
[null,null,null,null,null,null,{"$f":"IF(D48<>\"\", VLOOKUP(D48,bank_code_table[],2,FALSE), \"\")","v":""},0]
[null,null,null,null,null,null,{"$f":"IF(D49<>\"\", VLOOKUP(D49,bank_code_table[],2,FALSE), \"\")","v":""},0]
[null,null,null,null,null,null,{"$f":"IF(D50<>\"\", VLOOKUP(D50,bank_code_table[],2,FALSE), \"\")","v":""},0]
[null,null,null,null,null,null,{"$f":"IF(D51<>\"\", VLOOKUP(D51,bank_code_table[],2,FALSE), \"\")","v":""},0]
[null,null,null,null,null,null,{"$f":"IF(D52<>\"\", VLOOKUP(D52,bank_code_table[],2,FALSE), \"\")","v":""},0]
[null,null,null,null,null,null,{"$f":"IF(D53<>\"\", VLOOKUP(D53,bank_code_table[],2,FALSE), \"\")","v":""},0]
[null,null,null,null,null,null,{"$f":"IF(D54<>\"\", VLOOKUP(D54,bank_code_table[],2,FALSE), \"\")","v":""},0]
[null,null,null,null,null,null,{"$f":"IF(D55<>\"\", VLOOKUP(D55,bank_code_table[],2,FALSE), \"\")","v":""},0]
[null,null,null,null,null,null,{"$f":"IF(D56<>\"\", VLOOKUP(D56,bank_code_table[],2,FALSE), \"\")","v":""},0]
[null,null,null,null,null,null,{"$f":"IF(D57<>\"\", VLOOKUP(D57,bank_code_table[],2,FALSE), \"\")","v":""},0]
[null,null,null,null,null,null,{"$f":"IF(D58<>\"\", VLOOKUP(D58,bank_code_table[],2,FALSE), \"\")","v":""},0]
[null,null,null,null,null,null,{"$f":"IF(D59<>\"\", VLOOKUP(D59,bank_code_table[],2,FALSE), \"\")","v":""},0]
[null,null,null,null,null,null,{"$f":"IF(D60<>\"\", VLOOKUP(D60,bank_code_table[],2,FALSE), \"\")","v":""},0]
[null,null,null,null,null,null,{"$f":"IF(D61<>\"\", VLOOKUP(D61,bank_code_table[],2,FALSE), \"\")","v":""},0]
[null,null,null,null,null,null,{"$f":"IF(D62<>\"\", VLOOKUP(D62,bank_code_table[],2,FALSE), \"\")","v":""},0]
[null,null,null,null,null,null,{"$f":"IF(D63<>\"\", VLOOKUP(D63,bank_code_table[],2,FALSE), \"\")","v":""},0]
[null,null,null,null,null,null,{"$f":"IF(D64<>\"\", VLOOKUP(D64,bank_code_table[],2,FALSE), \"\")","v":""},0]
[null,null,null,null,null,null,{"$f":"IF(D65<>\"\", VLOOKUP(D65,bank_code_table[],2,FALSE), \"\")","v":""},0]
[null,null,null,null,null,null,{"$f":"IF(D66<>\"\", VLOOKUP(D66,bank_code_table[],2,FALSE), \"\")","v":""},0]
[null,null,null,null,null,null,{"$f":"IF(D67<>\"\", VLOOKUP(D67,bank_code_table[],2,FALSE), \"\")","v":""},0]
[null,null,null,null,null,null,{"$f":"IF(D68<>\"\", VLOOKUP(D68,bank_code_table[],2,FALSE), \"\")","v":""},0]
[null,null,null,null,null,null,{"$f":"IF(D69<>\"\", VLOOKUP(D69,bank_code_table[],2,FALSE), \"\")","v":""},0]
[null,null,null,null,null,null,{"$f":"IF(D70<>\"\", VLOOKUP(D70,bank_code_table[],2,FALSE), \"\")","v":""},{"$f":"LEN(F70)","v":0}]
[null,null,null,null,null,null,{"$f":"IF(D71<>\"\", VLOOKUP(D71,bank_code_table[],2,FALSE), \"\")","v":""},0]
[null,null,null,null,null,null,{"$f":"IF(D72<>\"\", VLOOKUP(D72,bank_code_table[],2,FALSE), \"\")","v":""},0]
[null,null,null,null,null,null,{"$f":"IF(D73<>\"\", VLOOKUP(D73,bank_code_table[],2,FALSE), \"\")","v":""},0]
[null,null,null,null,null,null,{"$f":"IF(D74<>\"\", VLOOKUP(D74,bank_code_table[],2,FALSE), \"\")","v":""},0]
[null,null,null,null,null,null,{"$f":"IF(D75<>\"\", VLOOKUP(D75,bank_code_table[],2,FALSE), \"\")","v":""},0]
[null,null,null,null,null,null,{"$f":"IF(D76<>\"\", VLOOKUP(D76,bank_code_table[],2,FALSE), \"\")","v":""},0]
[null,null,null,null,null,null,{"$f":"IF(D77<>\"\", VLOOKUP(D77,bank_code_table[],2,FALSE), \"\")","v":""},0]
[null,null,null,null,null,null,{"$f":"IF(D78<>\"\", VLOOKUP(D78,bank_code_table[],2,FALSE), \"\")","v":""},0]
[null,null,null,null,null,null,{"$f":"IF(D79<>\"\", VLOOKUP(D79,bank_code_table[],2,FALSE), \"\")","v":""},0]
[null,null,null,null,null,null,{"$f":"IF(D80<>\"\", VLOOKUP(D80,bank_code_table[],2,FALSE), \"\")","v":""},0]
[null,null,null,null,null,null,{"$f":"IF(D81<>\"\", VLOOKUP(D81,bank_code_table[],2,FALSE), \"\")","v":""},0]
[null,null,null,null,null,null,{"$f":"IF(D82<>\"\", VLOOKUP(D82,bank_code_table[],2,FALSE), \"\")","v":""},0]
[null,null,null,null,null,null,{"$f":"IF(D83<>\"\", VLOOKUP(D83,bank_code_table[],2,FALSE), \"\")","v":""},0]
[null,null,null,null,null,null,{"$f":"IF(D84<>\"\", VLOOKUP(D84,bank_code_table[],2,FALSE), \"\")","v":""},0]
[null,null,null,null,null,null,{"$f":"IF(D85<>\"\", VLOOKUP(D85,bank_code_table[],2,FALSE), \"\")","v":""},0]
[null,null,null,null,null,null,{"$f":"IF(D86<>\"\", VLOOKUP(D86,bank_code_table[],2,FALSE), \"\")","v":""},0]
[null,null,null,null,null,null,{"$f":"IF(D87<>\"\", VLOOKUP(D87,bank_code_table[],2,FALSE), \"\")","v":""},0]
[null,null,null,null,null,null,{"$f":"IF(D88<>\"\", VLOOKUP(D88,bank_code_table[],2,FALSE), \"\")","v":""},0]
[null,null,null,null,null,null,{"$f":"IF(D89<>\"\", VLOOKUP(D89,bank_code_table[],2,FALSE), \"\")","v":""},0]
[null,null,null,null,null,null,{"$f":"IF(D90<>\"\", VLOOKUP(D90,bank_code_table[],2,FALSE), \"\")","v":""},0]
[null,null,null,null,null,null,{"$f":"IF(D91<>\"\", VLOOKUP(D91,bank_code_table[],2,FALSE), \"\")","v":""},0]
[null,null,null,null,null,null,{"$f":"IF(D92<>\"\", VLOOKUP(D92,bank_code_table[],2,FALSE), \"\")","v":""},0]
[null,null,null,null,null,null,{"$f":"IF(D93<>\"\", VLOOKUP(D93,bank_code_table[],2,FALSE), \"\")","v":""},0]
[null,null,null,null,null,null,{"$f":"IF(D94<>\"\", VLOOKUP(D94,bank_code_table[],2,FALSE), \"\")","v":""},0]
[null,null,null,null,null,null,{"$f":"IF(D95<>\"\", VLOOKUP(D95,bank_code_table[],2,FALSE), \"\")","v":""},0]
[null,null,null,null,null,null,{"$f":"IF(D96<>\"\", VLOOKUP(D96,bank_code_table[],2,FALSE), \"\")","v":""},0]
[null,null,null,null,null,null,{"$f":"IF(D97<>\"\", VLOOKUP(D97,bank_code_table[],2,FALSE), \"\")","v":""},0]
[null,null,null,null,null,null,{"$f":"IF(D98<>\"\", VLOOKUP(D98,bank_code_table[],2,FALSE), \"\")","v":""},0]
[null,null,null,null,null,null,{"$f":"IF(D99<>\"\", VLOOKUP(D99,bank_code_table[],2,FALSE), \"\")","v":""},0]
[null,null,null,null,null,null,{"$f":"IF(D100<>\"\", VLOOKUP(D100,bank_code_table[],2,FALSE), \"\")","v":""},0]
[null,null,null,null,null,null,{"$f":"IF(D101<>\"\", VLOOKUP(D101,bank_code_table[],2,FALSE), \"\")","v":""},0]
[null,null,null,null,null,null,{"$f":"IF(D102<>\"\", VLOOKUP(D102,bank_code_table[],2,FALSE), \"\")","v":""},0]
[null,null,null,null,null,null,{"$f":"IF(D103<>\"\", VLOOKUP(D103,bank_code_table[],2,FALSE), \"\")","v":""},0]
[null,null,null,null,null,null,{"$f":"IF(D104<>\"\", VLOOKUP(D104,bank_code_table[],2,FALSE), \"\")","v":""},0]
[null,null,null,null,null,null,{"$f":"IF(D105<>\"\", VLOOKUP(D105,bank_code_table[],2,FALSE), \"\")","v":""},0]
[null,null,null,null,null,null,{"$f":"IF(D106<>\"\", VLOOKUP(D106,bank_code_table[],2,FALSE), \"\")","v":""},0]
[null,null,null,null,null,null,{"$f":"IF(D107<>\"\", VLOOKUP(D107,bank_code_table[],2,FALSE), \"\")","v":""},0]
[null,null,null,null,null,null,{"$f":"IF(D108<>\"\", VLOOKUP(D108,bank_code_table[],2,FALSE), \"\")","v":""},0]
[null,null,null,null,null,null,{"$f":"IF(D109<>\"\", VLOOKUP(D109,bank_code_table[],2,FALSE), \"\")","v":""},0]
[null,null,null,null,null,null,{"$f":"IF(D110<>\"\", VLOOKUP(D110,bank_code_table[],2,FALSE), \"\")","v":""},0]
[null,null,null,null,null,null,{"$f":"IF(D111<>\"\", VLOOKUP(D111,bank_code_table[],2,FALSE), \"\")","v":""},0]
[null,null,null,null,null,null,{"$f":"IF(D112<>\"\", VLOOKUP(D112,bank_code_table[],2,FALSE), \"\")","v":""},0]
[null,null,null,null,null,null,{"$f":"IF(D113<>\"\", VLOOKUP(D113,bank_code_table[],2,FALSE), \"\")","v":""},0]
[null,null,null,null,null,null,{"$f":"IF(D114<>\"\", VLOOKUP(D114,bank_code_table[],2,FALSE), \"\")","v":""},0]
[null,null,null,null,null,null,{"$f":"IF(D115<>\"\", VLOOKUP(D115,bank_code_table[],2,FALSE), \"\")","v":""},0]
[null,null,null,null,null,null,{"$f":"IF(D116<>\"\", VLOOKUP(D116,bank_code_table[],2,FALSE), \"\")","v":""},0]
[null,null,null,null,null,null,{"$f":"IF(D117<>\"\", VLOOKUP(D117,bank_code_table[],2,FALSE), \"\")","v":""},0]
[null,null,null,null,null,null,{"$f":"IF(D118<>\"\", VLOOKUP(D118,bank_code_table[],2,FALSE), \"\")","v":""},0]
[null,null,null,null,null,null,{"$f":"IF(D119<>\"\", VLOOKUP(D119,bank_code_table[],2,FALSE), \"\")","v":""},0]
[null,null,null,null,null,null,{"$f":"IF(D120<>\"\", VLOOKUP(D120,bank_code_table[],2,FALSE), \"\")","v":""},0]
[null,null,null,null,null,null,{"$f":"IF(D121<>\"\", VLOOKUP(D121,bank_code_table[],2,FALSE), \"\")","v":""},0]
[null,null,null,null,null,null,{"$f":"IF(D122<>\"\", VLOOKUP(D122,bank_code_table[],2,FALSE), \"\")","v":""},0]
[null,null,null,null,null,null,{"$f":"IF(D123<>\"\", VLOOKUP(D123,bank_code_table[],2,FALSE), \"\")","v":""},0]
[null,null,null,null,null,null,{"$f":"IF(D124<>\"\", VLOOKUP(D124,bank_code_table[],2,FALSE), \"\")","v":""},0]
[null,null,null,null,null,null,{"$f":"IF(D125<>\"\", VLOOKUP(D125,bank_code_table[],2,FALSE), \"\")","v":""},0]
[null,null,null,null,null,null,{"$f":"IF(D126<>\"\", VLOOKUP(D126,bank_code_table[],2,FALSE), \"\")","v":""},0]
[null,null,null,null,null,null,{"$f":"IF(D127<>\"\", VLOOKUP(D127,bank_code_table[],2,FALSE), \"\")","v":""},0]
[null,null,null,null,null,null,{"$f":"IF(D128<>\"\", VLOOKUP(D128,bank_code_table[],2,FALSE), \"\")","v":""},0]
[null,null,null,null,null,null,{"$f":"IF(D129<>\"\", VLOOKUP(D129,bank_code_table[],2,FALSE), \"\")","v":""},0]
[null,null,null,null,null,null,{"$f":"IF(D130<>\"\", VLOOKUP(D130,bank_code_table[],2,FALSE), \"\")","v":""},0]
[null,null,null,null,null,null,{"$f":"IF(D131<>\"\", VLOOKUP(D131,bank_code_table[],2,FALSE), \"\")","v":""},0]
[null,null,null,null,null,null,{"$f":"IF(D132<>\"\", VLOOKUP(D132,bank_code_table[],2,FALSE), \"\")","v":""},0]
[null,null,null,null,null,null,{"$f":"IF(D133<>\"\", VLOOKUP(D133,bank_code_table[],2,FALSE), \"\")","v":""},0]
[null,null,null,null,null,null,{"$f":"IF(D134<>\"\", VLOOKUP(D134,bank_code_table[],2,FALSE), \"\")","v":""},{"$f":"LEN(F134)","v":0}]
[null,null,null,null,null,null,{"$f":"IF(D135<>\"\", VLOOKUP(D135,bank_code_table[],2,FALSE), \"\")","v":""},0]
[null,null,null,null,null,null,{"$f":"IF(D136<>\"\", VLOOKUP(D136,bank_code_table[],2,FALSE), \"\")","v":""},0]
[null,null,null,null,null,null,{"$f":"IF(D137<>\"\", VLOOKUP(D137,bank_code_table[],2,FALSE), \"\")","v":""},0]
[null,null,null,null,null,null,{"$f":"IF(D138<>\"\", VLOOKUP(D138,bank_code_table[],2,FALSE), \"\")","v":""},0]
[null,null,null,null,null,null,{"$f":"IF(D139<>\"\", VLOOKUP(D139,bank_code_table[],2,FALSE), \"\")","v":""},0]
[null,null,null,null,null,null,{"$f":"IF(D140<>\"\", VLOOKUP(D140,bank_code_table[],2,FALSE), \"\")","v":""},0]
[null,null,null,null,null,null,{"$f":"IF(D141<>\"\", VLOOKUP(D141,bank_code_table[],2,FALSE), \"\")","v":""},0]
[null,null,null,null,null,null,{"$f":"IF(D142<>\"\", VLOOKUP(D142,bank_code_table[],2,FALSE), \"\")","v":""},0]
[null,null,null,null,null,null,{"$f":"IF(D143<>\"\", VLOOKUP(D143,bank_code_table[],2,FALSE), \"\")","v":""},0]
[null,null,null,null,null,null,{"$f":"IF(D144<>\"\", VLOOKUP(D144,bank_code_table[],2,FALSE), \"\")","v":""},0]
[null,null,null,null,null,null,{"$f":"IF(D145<>\"\", VLOOKUP(D145,bank_code_table[],2,FALSE), \"\")","v":""},0]
[null,null,null,null,null,null,{"$f":"IF(D146<>\"\", VLOOKUP(D146,bank_code_table[],2,FALSE), \"\")","v":""},0]
[null,null,null,null,null,null,{"$f":"IF(D147<>\"\", VLOOKUP(D147,bank_code_table[],2,FALSE), \"\")","v":""},0]
[null,null,null,null,null,null,{"$f":"IF(D148<>\"\", VLOOKUP(D148,bank_code_table[],2,FALSE), \"\")","v":""},0]
[null,null,null,null,null,null,{"$f":"IF(D149<>\"\", VLOOKUP(D149,bank_code_table[],2,FALSE), \"\")","v":""},0]
[null,null,null,null,null,null,{"$f":"IF(D150<>\"\", VLOOKUP(D150,bank_code_table[],2,FALSE), \"\")","v":""},0]
[null,null,null,null,null,null,{"$f":"IF(D151<>\"\", VLOOKUP(D151,bank_code_table[],2,FALSE), \"\")","v":""},0]
[null,null,null,null,null,null,{"$f":"IF(D152<>\"\", VLOOKUP(D152,bank_code_table[],2,FALSE), \"\")","v":""},0]
[null,null,null,null,null,null,{"$f":"IF(D153<>\"\", VLOOKUP(D153,bank_code_table[],2,FALSE), \"\")","v":""},0]
[null,null,null,null,null,null,{"$f":"IF(D154<>\"\", VLOOKUP(D154,bank_code_table[],2,FALSE), \"\")","v":""},0]
[null,null,null,null,null,null,{"$f":"IF(D155<>\"\", VLOOKUP(D155,bank_code_table[],2,FALSE), \"\")","v":""},0]
[null,null,null,null,null,null,{"$f":"IF(D156<>\"\", VLOOKUP(D156,bank_code_table[],2,FALSE), \"\")","v":""},0]
[null,null,null,null,null,null,{"$f":"IF(D157<>\"\", VLOOKUP(D157,bank_code_table[],2,FALSE), \"\")","v":""},0]
[null,null,null,null,null,null,{"$f":"IF(D158<>\"\", VLOOKUP(D158,bank_code_table[],2,FALSE), \"\")","v":""},0]
[null,null,null,null,null,null,{"$f":"IF(D159<>\"\", VLOOKUP(D159,bank_code_table[],2,FALSE), \"\")","v":""},0]
[null,null,null,null,null,null,{"$f":"IF(D160<>\"\", VLOOKUP(D160,bank_code_table[],2,FALSE), \"\")","v":""},0]
[null,null,null,null,null,null,{"$f":"IF(D161<>\"\", VLOOKUP(D161,bank_code_table[],2,FALSE), \"\")","v":""},0]
[null,null,null,null,null,null,{"$f":"IF(D162<>\"\", VLOOKUP(D162,bank_code_table[],2,FALSE), \"\")","v":""},0]
[null,null,null,null,null,null,{"$f":"IF(D163<>\"\", VLOOKUP(D163,bank_code_table[],2,FALSE), \"\")","v":""},0]
[null,null,null,null,null,null,{"$f":"IF(D164<>\"\", VLOOKUP(D164,bank_code_table[],2,FALSE), \"\")","v":""},0]
[null,null,null,null,null,null,{"$f":"IF(D165<>\"\", VLOOKUP(D165,bank_code_table[],2,FALSE), \"\")","v":""},0]
[null,null,null,null,null,null,{"$f":"IF(D166<>\"\", VLOOKUP(D166,bank_code_table[],2,FALSE), \"\")","v":""},0]
[null,null,null,null,null,null,{"$f":"IF(D167<>\"\", VLOOKUP(D167,bank_code_table[],2,FALSE), \"\")","v":""},0]
[null,null,null,null,null,null,{"$f":"IF(D168<>\"\", VLOOKUP(D168,bank_code_table[],2,FALSE), \"\")","v":""},0]
[null,null,null,null,null,null,{"$f":"IF(D169<>\"\", VLOOKUP(D169,bank_code_table[],2,FALSE), \"\")","v":""},0]
[null,null,null,null,null,null,{"$f":"IF(D170<>\"\", VLOOKUP(D170,bank_code_table[],2,FALSE), \"\")","v":""},0]
[null,null,null,null,null,null,{"$f":"IF(D171<>\"\", VLOOKUP(D171,bank_code_table[],2,FALSE), \"\")","v":""},0]
[null,null,null,null,null,null,{"$f":"IF(D172<>\"\", VLOOKUP(D172,bank_code_table[],2,FALSE), \"\")","v":""},0]
[null,null,null,null,null,null,{"$f":"IF(D173<>\"\", VLOOKUP(D173,bank_code_table[],2,FALSE), \"\")","v":""},0]
[null,null,null,null,null,null,{"$f":"IF(D174<>\"\", VLOOKUP(D174,bank_code_table[],2,FALSE), \"\")","v":""},0]
[null,null,null,null,null,null,{"$f":"IF(D175<>\"\", VLOOKUP(D175,bank_code_table[],2,FALSE), \"\")","v":""},0]
[null,null,null,null,null,null,{"$f":"IF(D176<>\"\", VLOOKUP(D176,bank_code_table[],2,FALSE), \"\")","v":""},0]
[null,null,null,null,null,null,{"$f":"IF(D177<>\"\", VLOOKUP(D177,bank_code_table[],2,FALSE), \"\")","v":""},0]
[null,null,null,null,null,null,{"$f":"IF(D178<>\"\", VLOOKUP(D178,bank_code_table[],2,FALSE), \"\")","v":""},0]
[null,null,null,null,null,null,{"$f":"IF(D179<>\"\", VLOOKUP(D179,bank_code_table[],2,FALSE), \"\")","v":""},0]
[null,null,null,null,null,null,{"$f":"IF(D180<>\"\", VLOOKUP(D180,bank_code_table[],2,FALSE), \"\")","v":""},0]
[null,null,null,null,null,null,{"$f":"IF(D181<>\"\", VLOOKUP(D181,bank_code_table[],2,FALSE), \"\")","v":""},0]
[null,null,null,null,null,null,{"$f":"IF(D182<>\"\", VLOOKUP(D182,bank_code_table[],2,FALSE), \"\")","v":""},0]
[null,null,null,null,null,null,{"$f":"IF(D183<>\"\", VLOOKUP(D183,bank_code_table[],2,FALSE), \"\")","v":""},0]
[null,null,null,null,null,null,{"$f":"IF(D184<>\"\", VLOOKUP(D184,bank_code_table[],2,FALSE), \"\")","v":""},0]
[null,null,null,null,null,null,{"$f":"IF(D185<>\"\", VLOOKUP(D185,bank_code_table[],2,FALSE), \"\")","v":""},0]
[null,null,null,null,null,null,{"$f":"IF(D186<>\"\", VLOOKUP(D186,bank_code_table[],2,FALSE), \"\")","v":""},0]
[null,null,null,null,null,null,{"$f":"IF(D187<>\"\", VLOOKUP(D187,bank_code_table[],2,FALSE), \"\")","v":""},0]
[null,null,null,null,null,null,{"$f":"IF(D188<>\"\", VLOOKUP(D188,bank_code_table[],2,FALSE), \"\")","v":""},0]
[null,null,null,null,null,null,{"$f":"IF(D189<>\"\", VLOOKUP(D189,bank_code_table[],2,FALSE), \"\")","v":""},0]
[null,null,null,null,null,null,{"$f":"IF(D190<>\"\", VLOOKUP(D190,bank_code_table[],2,FALSE), \"\")","v":""},0]
[null,null,null,null,null,null,{"$f":"IF(D191<>\"\", VLOOKUP(D191,bank_code_table[],2,FALSE), \"\")","v":""},0]
[null,null,null,null,null,null,{"$f":"IF(D192<>\"\", VLOOKUP(D192,bank_code_table[],2,FALSE), \"\")","v":""},0]
[null,null,null,null,null,null,{"$f":"IF(D193<>\"\", VLOOKUP(D193,bank_code_table[],2,FALSE), \"\")","v":""},0]
[null,null,null,null,null,null,{"$f":"IF(D194<>\"\", VLOOKUP(D194,bank_code_table[],2,FALSE), \"\")","v":""},0]
[null,null,null,null,null,null,{"$f":"IF(D195<>\"\", VLOOKUP(D195,bank_code_table[],2,FALSE), \"\")","v":""},0]
[null,null,null,null,null,null,{"$f":"IF(D196<>\"\", VLOOKUP(D196,bank_code_table[],2,FALSE), \"\")","v":""},0]
[null,null,null,null,null,null,{"$f":"IF(D197<>\"\", VLOOKUP(D197,bank_code_table[],2,FALSE), \"\")","v":""},0]
[null,null,null,null,null,null,{"$f":"IF(D198<>\"\", VLOOKUP(D198,bank_code_table[],2,FALSE), \"\")","v":""},{"$f":"LEN(F198)","v":0}]
[null,null,null,null,null,null,{"$f":"IF(D199<>\"\", VLOOKUP(D199,bank_code_table[],2,FALSE), \"\")","v":""},0]
[null,null,null,null,null,null,{"$f":"IF(D200<>\"\", VLOOKUP(D200,bank_code_table[],2,FALSE), \"\")","v":""},0]
[null,null,null,null,null,null,{"$f":"IF(D201<>\"\", VLOOKUP(D201,bank_code_table[],2,FALSE), \"\")","v":""},0]
[null,null,null,null,null,null,{"$f":"IF(D202<>\"\", VLOOKUP(D202,bank_code_table[],2,FALSE), \"\")","v":""},0]
[null,null,null,null,null,null,{"$f":"IF(D203<>\"\", VLOOKUP(D203,bank_code_table[],2,FALSE), \"\")","v":""},0]
[null,null,null,null,null,null,{"$f":"IF(D204<>\"\", VLOOKUP(D204,bank_code_table[],2,FALSE), \"\")","v":""},0]
[null,null,null,null,null,null,{"$f":"IF(D205<>\"\", VLOOKUP(D205,bank_code_table[],2,FALSE), \"\")","v":""},0]
[null,null,null,null,null,null,{"$f":"IF(D206<>\"\", VLOOKUP(D206,bank_code_table[],2,FALSE), \"\")","v":""},0]
[null,null,null,null,null,null,{"$f":"IF(D207<>\"\", VLOOKUP(D207,bank_code_table[],2,FALSE), \"\")","v":""},0]
[null,null,null,null,null,null,{"$f":"IF(D208<>\"\", VLOOKUP(D208,bank_code_table[],2,FALSE), \"\")","v":""},0]
[null,null,null,null,null,null,{"$f":"IF(D209<>\"\", VLOOKUP(D209,bank_code_table[],2,FALSE), \"\")","v":""},0]
[null,null,null,null,null,null,{"$f":"IF(D210<>\"\", VLOOKUP(D210,bank_code_table[],2,FALSE), \"\")","v":""},0]
[null,null,null,null,null,null,{"$f":"IF(D211<>\"\", VLOOKUP(D211,bank_code_table[],2,FALSE), \"\")","v":""},0]
[null,null,null,null,null,null,{"$f":"IF(D212<>\"\", VLOOKUP(D212,bank_code_table[],2,FALSE), \"\")","v":""},0]
[null,null,null,null,null,null,{"$f":"IF(D213<>\"\", VLOOKUP(D213,bank_code_table[],2,FALSE), \"\")","v":""},0]
[null,null,null,null,null,null,{"$f":"IF(D214<>\"\", VLOOKUP(D214,bank_code_table[],2,FALSE), \"\")","v":""},0]
[null,null,null,null,null,null,{"$f":"IF(D215<>\"\", VLOOKUP(D215,bank_code_table[],2,FALSE), \"\")","v":""},0]
[null,null,null,null,null,null,{"$f":"IF(D216<>\"\", VLOOKUP(D216,bank_code_table[],2,FALSE), \"\")","v":""},0]
[null,null,null,null,null,null,{"$f":"IF(D217<>\"\", VLOOKUP(D217,bank_code_table[],2,FALSE), \"\")","v":""},0]
[null,null,null,null,null,null,{"$f":"IF(D218<>\"\", VLOOKUP(D218,bank_code_table[],2,FALSE), \"\")","v":""},0]
[null,null,null,null,null,null,{"$f":"IF(D219<>\"\", VLOOKUP(D219,bank_code_table[],2,FALSE), \"\")","v":""},0]
[null,null,null,null,null,null,{"$f":"IF(D220<>\"\", VLOOKUP(D220,bank_code_table[],2,FALSE), \"\")","v":""},0]
[null,null,null,null,null,null,{"$f":"IF(D221<>\"\", VLOOKUP(D221,bank_code_table[],2,FALSE), \"\")","v":""},0]
[null,null,null,null,null,null,{"$f":"IF(D222<>\"\", VLOOKUP(D222,bank_code_table[],2,FALSE), \"\")","v":""},0]
[null,null,null,null,null,null,{"$f":"IF(D223<>\"\", VLOOKUP(D223,bank_code_table[],2,FALSE), \"\")","v":""},0]
[null,null,null,null,null,null,{"$f":"IF(D224<>\"\", VLOOKUP(D224,bank_code_table[],2,FALSE), \"\")","v":""},0]
[null,null,null,null,null,null,{"$f":"IF(D225<>\"\", VLOOKUP(D225,bank_code_table[],2,FALSE), \"\")","v":""},0]
[null,null,null,null,null,null,{"$f":"IF(D226<>\"\", VLOOKUP(D226,bank_code_table[],2,FALSE), \"\")","v":""},0]
[null,null,null,null,null,null,{"$f":"IF(D227<>\"\", VLOOKUP(D227,bank_code_table[],2,FALSE), \"\")","v":""},0]
[null,null,null,null,null,null,{"$f":"IF(D228<>\"\", VLOOKUP(D228,bank_code_table[],2,FALSE), \"\")","v":""},0]
[null,null,null,null,null,null,{"$f":"IF(D229<>\"\", VLOOKUP(D229,bank_code_table[],2,FALSE), \"\")","v":""},0]
[null,null,null,null,null,null,{"$f":"IF(D230<>\"\", VLOOKUP(D230,bank_code_table[],2,FALSE), \"\")","v":""},0]
[null,null,null,null,null,null,{"$f":"IF(D231<>\"\", VLOOKUP(D231,bank_code_table[],2,FALSE), \"\")","v":""},0]
[null,null,null,null,null,null,{"$f":"IF(D232<>\"\", VLOOKUP(D232,bank_code_table[],2,FALSE), \"\")","v":""},0]
[null,null,null,null,null,null,{"$f":"IF(D233<>\"\", VLOOKUP(D233,bank_code_table[],2,FALSE), \"\")","v":""},0]
[null,null,null,null,null,null,{"$f":"IF(D234<>\"\", VLOOKUP(D234,bank_code_table[],2,FALSE), \"\")","v":""},0]
[null,null,null,null,null,null,{"$f":"IF(D235<>\"\", VLOOKUP(D235,bank_code_table[],2,FALSE), \"\")","v":""},0]
[null,null,null,null,null,null,{"$f":"IF(D236<>\"\", VLOOKUP(D236,bank_code_table[],2,FALSE), \"\")","v":""},0]
[null,null,null,null,null,null,{"$f":"IF(D237<>\"\", VLOOKUP(D237,bank_code_table[],2,FALSE), \"\")","v":""},0]
[null,null,null,null,null,null,{"$f":"IF(D238<>\"\", VLOOKUP(D238,bank_code_table[],2,FALSE), \"\")","v":""},0]
[null,null,null,null,null,null,{"$f":"IF(D239<>\"\", VLOOKUP(D239,bank_code_table[],2,FALSE), \"\")","v":""},0]
[null,null,null,null,null,null,{"$f":"IF(D240<>\"\", VLOOKUP(D240,bank_code_table[],2,FALSE), \"\")","v":""},0]
[null,null,null,null,null,null,{"$f":"IF(D241<>\"\", VLOOKUP(D241,bank_code_table[],2,FALSE), \"\")","v":""},0]
[null,null,null,null,null,null,{"$f":"IF(D242<>\"\", VLOOKUP(D242,bank_code_table[],2,FALSE), \"\")","v":""},0]
[null,null,null,null,null,null,{"$f":"IF(D243<>\"\", VLOOKUP(D243,bank_code_table[],2,FALSE), \"\")","v":""},0]
[null,null,null,null,null,null,{"$f":"IF(D244<>\"\", VLOOKUP(D244,bank_code_table[],2,FALSE), \"\")","v":""},0]
[null,null,null,null,null,null,{"$f":"IF(D245<>\"\", VLOOKUP(D245,bank_code_table[],2,FALSE), \"\")","v":""},0]
[null,null,null,null,null,null,{"$f":"IF(D246<>\"\", VLOOKUP(D246,bank_code_table[],2,FALSE), \"\")","v":""},0]
[null,null,null,null,null,null,{"$f":"IF(D247<>\"\", VLOOKUP(D247,bank_code_table[],2,FALSE), \"\")","v":""},0]
[null,null,null,null,null,null,{"$f":"IF(D248<>\"\", VLOOKUP(D248,bank_code_table[],2,FALSE), \"\")","v":""},0]
[null,null,null,null,null,null,{"$f":"IF(D249<>\"\", VLOOKUP(D249,bank_code_table[],2,FALSE), \"\")","v":""},0]
[null,null,null,null,null,null,{"$f":"IF(D250<>\"\", VLOOKUP(D250,bank_code_table[],2,FALSE), \"\")","v":""},0]
[null,null,null,null,null,null,{"$f":"IF(D251<>\"\", VLOOKUP(D251,bank_code_table[],2,FALSE), \"\")","v":""},0]
[null,null,null,null,null,null,{"$f":"IF(D252<>\"\", VLOOKUP(D252,bank_code_table[],2,FALSE), \"\")","v":""},0]
[null,null,null,null,null,null,{"$f":"IF(D253<>\"\", VLOOKUP(D253,bank_code_table[],2,FALSE), \"\")","v":""},0]
[null,null,null,null,null,null,{"$f":"IF(D254<>\"\", VLOOKUP(D254,bank_code_table[],2,FALSE), \"\")","v":""},0]
[null,null,null,null,null,null,{"$f":"IF(D255<>\"\", VLOOKUP(D255,bank_code_table[],2,FALSE), \"\")","v":""},0]
[null,null,null,null,null,null,{"$f":"IF(D256<>\"\", VLOOKUP(D256,bank_code_table[],2,FALSE), \"\")","v":""},0]
[null,null,null,null,null,null,{"$f":"IF(D257<>\"\", VLOOKUP(D257,bank_code_table[],2,FALSE), \"\")","v":""},0]
[null,null,null,null,null,null,{"$f":"IF(D258<>\"\", VLOOKUP(D258,bank_code_table[],2,FALSE), \"\")","v":""},0]
[null,null,null,null,null,null,{"$f":"IF(D259<>\"\", VLOOKUP(D259,bank_code_table[],2,FALSE), \"\")","v":""},0]
[null,null,null,null,null,null,{"$f":"IF(D260<>\"\", VLOOKUP(D260,bank_code_table[],2,FALSE), \"\")","v":""},0]
[null,null,null,null,null,null,{"$f":"IF(D261<>\"\", VLOOKUP(D261,bank_code_table[],2,FALSE), \"\")","v":""},0]
[null,null,null,null,null,null,{"$f":"IF(D262<>\"\", VLOOKUP(D262,bank_code_table[],2,FALSE), \"\")","v":""},{"$f":"LEN(F262)","v":0}]
[null,null,null,null,null,null,{"$f":"IF(D263<>\"\", VLOOKUP(D263,bank_code_table[],2,FALSE), \"\")","v":""},0]
[null,null,null,null,null,null,{"$f":"IF(D264<>\"\", VLOOKUP(D264,bank_code_table[],2,FALSE), \"\")","v":""},0]
[null,null,null,null,null,null,{"$f":"IF(D265<>\"\", VLOOKUP(D265,bank_code_table[],2,FALSE), \"\")","v":""},0]
[null,null,null,null,null,null,{"$f":"IF(D266<>\"\", VLOOKUP(D266,bank_code_table[],2,FALSE), \"\")","v":""},0]
[null,null,null,null,null,null,{"$f":"IF(D267<>\"\", VLOOKUP(D267,bank_code_table[],2,FALSE), \"\")","v":""},0]
[null,null,null,null,null,null,{"$f":"IF(D268<>\"\", VLOOKUP(D268,bank_code_table[],2,FALSE), \"\")","v":""},0]
[null,null,null,null,null,null,{"$f":"IF(D269<>\"\", VLOOKUP(D269,bank_code_table[],2,FALSE), \"\")","v":""},0]
[null,null,null,null,null,null,{"$f":"IF(D270<>\"\", VLOOKUP(D270,bank_code_table[],2,FALSE), \"\")","v":""},0]
[null,null,null,null,null,null,{"$f":"IF(D271<>\"\", VLOOKUP(D271,bank_code_table[],2,FALSE), \"\")","v":""},0]
[null,null,null,null,null,null,{"$f":"IF(D272<>\"\", VLOOKUP(D272,bank_code_table[],2,FALSE), \"\")","v":""},0]
[null,null,null,null,null,null,{"$f":"IF(D273<>\"\", VLOOKUP(D273,bank_code_table[],2,FALSE), \"\")","v":""},0]
[null,null,null,null,null,null,{"$f":"IF(D274<>\"\", VLOOKUP(D274,bank_code_table[],2,FALSE), \"\")","v":""},0]
[null,null,null,null,null,null,{"$f":"IF(D275<>\"\", VLOOKUP(D275,bank_code_table[],2,FALSE), \"\")","v":""},0]
[null,null,null,null,null,null,{"$f":"IF(D276<>\"\", VLOOKUP(D276,bank_code_table[],2,FALSE), \"\")","v":""},0]
[null,null,null,null,null,null,{"$f":"IF(D277<>\"\", VLOOKUP(D277,bank_code_table[],2,FALSE), \"\")","v":""},0]
[null,null,null,null,null,null,{"$f":"IF(D278<>\"\", VLOOKUP(D278,bank_code_table[],2,FALSE), \"\")","v":""},0]
[null,null,null,null,null,null,{"$f":"IF(D279<>\"\", VLOOKUP(D279,bank_code_table[],2,FALSE), \"\")","v":""},0]
[null,null,null,null,null,null,{"$f":"IF(D280<>\"\", VLOOKUP(D280,bank_code_table[],2,FALSE), \"\")","v":""},0]
[null,null,null,null,null,null,{"$f":"IF(D281<>\"\", VLOOKUP(D281,bank_code_table[],2,FALSE), \"\")","v":""},0]
[null,null,null,null,null,null,{"$f":"IF(D282<>\"\", VLOOKUP(D282,bank_code_table[],2,FALSE), \"\")","v":""},0]
[null,null,null,null,null,null,{"$f":"IF(D283<>\"\", VLOOKUP(D283,bank_code_table[],2,FALSE), \"\")","v":""},0]
[null,null,null,null,null,null,{"$f":"IF(D284<>\"\", VLOOKUP(D284,bank_code_table[],2,FALSE), \"\")","v":""},0]
[null,null,null,null,null,null,{"$f":"IF(D285<>\"\", VLOOKUP(D285,bank_code_table[],2,FALSE), \"\")","v":""},0]
[null,null,null,null,null,null,{"$f":"IF(D286<>\"\", VLOOKUP(D286,bank_code_table[],2,FALSE), \"\")","v":""},0]
[null,null,null,null,null,null,{"$f":"IF(D287<>\"\", VLOOKUP(D287,bank_code_table[],2,FALSE), \"\")","v":""},0]
[null,null,null,null,null,null,{"$f":"IF(D288<>\"\", VLOOKUP(D288,bank_code_table[],2,FALSE), \"\")","v":""},0]
[null,null,null,null,null,null,{"$f":"IF(D289<>\"\", VLOOKUP(D289,bank_code_table[],2,FALSE), \"\")","v":""},0]
[null,null,null,null,null,null,{"$f":"IF(D290<>\"\", VLOOKUP(D290,bank_code_table[],2,FALSE), \"\")","v":""},0]
[null,null,null,null,null,null,{"$f":"IF(D291<>\"\", VLOOKUP(D291,bank_code_table[],2,FALSE), \"\")","v":""},0]
[null,null,null,null,null,null,{"$f":"IF(D292<>\"\", VLOOKUP(D292,bank_code_table[],2,FALSE), \"\")","v":""},0]
[null,null,null,null,null,null,{"$f":"IF(D293<>\"\", VLOOKUP(D293,bank_code_table[],2,FALSE), \"\")","v":""},0]
[null,null,null,null,null,null,{"$f":"IF(D294<>\"\", VLOOKUP(D294,bank_code_table[],2,FALSE), \"\")","v":""},0]
[null,null,null,null,null,null,{"$f":"IF(D295<>\"\", VLOOKUP(D295,bank_code_table[],2,FALSE), \"\")","v":""},0]
[null,null,null,null,null,null,{"$f":"IF(D296<>\"\", VLOOKUP(D296,bank_code_table[],2,FALSE), \"\")","v":""},0]
[null,null,null,null,null,null,{"$f":"IF(D297<>\"\", VLOOKUP(D297,bank_code_table[],2,FALSE), \"\")","v":""},0]
[null,null,null,null,null,null,{"$f":"IF(D298<>\"\", VLOOKUP(D298,bank_code_table[],2,FALSE), \"\")","v":""},0]
[null,null,null,null,null,null,{"$f":"IF(D299<>\"\", VLOOKUP(D299,bank_code_table[],2,FALSE), \"\")","v":""},0]
[null,null,null,null,null,null,{"$f":"IF(D300<>\"\", VLOOKUP(D300,bank_code_table[],2,FALSE), \"\")","v":""},0]
[null,null,null,null,null,null,{"$f":"IF(D301<>\"\", VLOOKUP(D301,bank_code_table[],2,FALSE), \"\")","v":""},0]
[null,null,null,null,null,null,{"$f":"IF(D302<>\"\", VLOOKUP(D302,bank_code_table[],2,FALSE), \"\")","v":""},0]
[null,null,null,null,null,null,{"$f":"IF(D303<>\"\", VLOOKUP(D303,bank_code_table[],2,FALSE), \"\")","v":""},0]
[null,null,null,null,null,null,{"$f":"IF(D304<>\"\", VLOOKUP(D304,bank_code_table[],2,FALSE), \"\")","v":""},0,"END"]
[null,null,null,null,null,null,{"$f":"IF(D305<>\"\", VLOOKUP(D305,bank_name_code,2,FALSE), \"\")","v":""}]
[null,null,null,null,null,null,{"$f":"IF(D306<>\"\", VLOOKUP(D306,bank_name_code,2,FALSE), \"\")","v":""}]

{"sheet":"BankCodes","index":1,"n_rows":48,"n_cols":4,"rows_kept":48,"cut":false,"hidden":true,"merged":[]}
["Bank Name","Bank Code",null,"https://api.vietqr.io/v2/banks"]
["ABB - NH An Bình",970425,null,"Ngân hàng TMCP An Bình"]
["ACB - NH Á châu",970416,null,"Ngân hàng TMCP Á Châu"]
["Agribank - NH Nông nghiệp",970405,null,"Ngân hàng Nông nghiệp và Phát triển Nông thôn Việt Nam"]
["BacA - NH Bắc Á",970409,null,"Ngân hàng TMCP Bắc Á"]
["BaoViet - NH Bảo Việt",970438,null,"Ngân hàng TMCP Bảo Việt"]
["BIDV - NH Đầu tư và Phát triển",970418,null,"Ngân hàng TMCP Đầu tư và Phát triển Việt Nam"]
["CIMB - NH CIMB VN",422589,null,"Ngân hàng TNHH MTV CIMB Việt Nam"]
["Citibank - NH Citibank, CN Hà Nội",533948,null,"Ngân hàng Citibank, N.A. - Chi nhánh Hà Nội"]
["DongA - NH Đông Á",970406,null,"Ngân hàng TMCP Đông Á"]
["Eximbank - NH Xuất Nhập khẩu VN",970431,null,"Ngân hàng TMCP Xuất Nhập khẩu Việt Nam"]
["HDB - NH Phát triển TP. HCM",970437,null,"Ngân hàng TMCP Phát triển Thành phố Hồ Chí Minh"]
["HSBC - NH HSBC",458761,null,"Ngân hàng TNHH MTV HSBC (Việt Nam)"]
["LPBank - NH Lộc Phát Việt Nam",970449,null,"Ngân hàng TMCP Lộc Phát Việt Nam"]
["MB - NH Quân đội",970422,null,"Ngân hàng TMCP Quân đội"]
["MSB - NH Hàng Hải",970426,null,"Ngân hàng TMCP Hàng Hải"]
["NamA - NH Nam Á",970428,null,"Ngân hàng TMCP Nam Á"]
["OCB - NH Phương Đông",970448,null,"Ngân hàng TMCP Phương Đông"]
["PGBank - NH Xăng dầu Petrolimex",970430,null,"Ngân hàng TMCP Xăng dầu Petrolimex"]
["PublicBank - NH Public VN",970439,null,"Ngân hàng TNHH MTV Public Việt Nam"]
["Sacombank - NH Sài Gòn Thương Tín",970403,null,"Ngân hàng TMCP Sài Gòn Thương Tín"]
["SeABank - NH Đông Nam Á",970440,null,"Ngân hàng TMCP Đông Nam Á"]
["SCB - NH Sài Gòn",970429,null,"Ngân hàng TMCP Sài Gòn"]
["SHB - NH Sài Gòn - Hà Nội",970443,null,"Ngân hàng TMCP Sài Gòn - Hà Nội"]
["ShinhanBank - NH Shinhan VN",970424,null,"Ngân hàng TNHH MTV Shinhan Việt Nam"]
["StandardChartered VN",970410,null,"Ngân hàng TNHH MTV Standard Chartered Bank Việt Nam"]
["TPbank - NH Tiên phong",970423,null,"Ngân hàng TMCP Tiên Phong"]
["TCB - Techcombank",970407,null,"Ngân hàng TMCP Kỹ thương Việt Nam"]
["VBSP - NH Chính sách Xã hội",999888,null,"Ngân hàng Chính sách Xã hội"]
["VCB - Vietcombank",970436,null,"Ngân hàng TMCP Ngoại Thương Việt Nam"]
["VIB - NH Quốc tế",970441,null,"Ngân hàng TMCP Quốc tế Việt Nam"]
["VietA - NH Việt Á",970427,null,"Ngân hàng TMCP Việt Á"]
["VietBank - NH VN Thương Tín",970433,null,"Ngân hàng TMCP Việt Nam Thương Tín"]
["VietCapital - NH Bản Việt",970454,null,"Ngân hàng TMCP Bản Việt"]
["Vietinbank - NH Công thương",970415,null,"Ngân hàng TMCP Công thương Việt Nam"]
["VPbank - NH VN Thịnh Vượng",970432,null,"Ngân hàng TMCP Việt Nam Thịnh Vượng"]
["VRB - NH Việt - Nga",970421,null,"Ngân hàng Liên doanh Việt - Nga"]
["UnitedOverseas CN TP HCM",970458,null,"Ngân hàng United Overseas - Chi nhánh TP. Hồ Chí Minh"]
[]
[]
[]
[]
[]
["Lookup name","BIN","exist","Bank Name"]
["CAKE - NH số CAKE by VPBank",546034,null,"TMCP Việt Nam Thịnh Vượng - Ngân hàng số CAKE by VPBank"]
["Timo - NH số Timo by Ban Viet Bank",963388,null,"Ngân hàng số Timo by Ban Viet Bank"]
["Ubank - NH số Ubank by VPBank",546035,null,"TMCP Việt Nam Thịnh Vượng - Ngân hàng số Ubank by VPBank"]
["Woori - NH Việt Nam",970457,null,"Ngân hàng TNHH MTV Woori Việt Nam"]